bitfinex-derivatives/quotes_BTCF0:USTF0_20250902
["timestamp","ask_amount","ask_price","bid_price","bid_amount"]
[1756781629336,1.72462232,109880.0,109870.0,0.46080947]
[1756781630145,0.94202,109880.0,109870.0,0.49798947]
[1756781630344,1.76462232,109880.0,109870.0,0.49798947]
[1756781630541,1.76462232,109880.0,109870.0,0.73429063]
[1756781631045,1.52832116,109880.0,109870.0,0.73429063]
[1756781632951,1.76462232,109880.0,109870.0,0.46080947]
[1756781634142,1.76462232,109880.0,109870.0,0.43742947]
[1756781634750,1.76462232,109880.0,109870.0,0.46080947]
[1756781635345,1.76462232,109880.0,109870.0,0.43742947]
[1756781636242,1.76462232,109880.0,109870.0,0.38871]
[1756781636752,1.76462232,109880.0,109870.0,0.38671]
[1756781637748,1.76462232,109880.0,109870.0,0.43542947]
[1756781638258,1.76462232,109880.0,109870.0,0.40951947]
[1756781639151,1.76462232,109880.0,109870.0,0.45580947]
[1756781639756,1.76462232,109880.0,109870.0,0.38371]
[1756781639952,0.03626,109870.0,109860.0,0.51320233]
[1756781640252,0.90567551,109870.0,109860.0,0.43242493]
[1756781640755,0.90567551,109870.0,109850.0,0.49298493]
[1756781640756,0.03626,109860.0,109850.0,0.49298493]
[1756781640951,1.77658232,109860.0,109850.0,0.49298493]
[1756781641558,1.77558232,109860.0,109850.0,0.49298493]
[1756781642258,1.77758232,109860.0,109850.0,0.49298493]
[1756781642655,1.77558232,109860.0,109850.0,0.49298493]
[1756781642855,1.77558232,109860.0,109850.0,0.13218493]
[1756781643055,1.77558232,109860.0,109850.0,0.04629]
[1756781643356,1.77758232,109860.0,109850.0,0.08347]
[1756781644158,1.77758232,109860.0,109850.0,0.44427]
[1756781644558,1.7867988,109860.0,109850.0,0.44427]
[1756781645461,1.7867988,109860.0,109850.0,0.38371]
[1756781646165,1.7867988,109860.0,109850.0,0.43242493]
[1756781646655,1.7867988,109860.0,109850.0,0.40627]
[1756781647955,1.7867988,109860.0,109850.0,0.38371]
[1756781648763,2.1143388,109860.0,109840.0,0.44581493]
[1756781648958,0.32108116,109850.0,109840.0,0.49270493]
[1756781649162,0.68108116,109850.0,109840.0,0.49304493]
[1756781649363,0.63108116,109850.0,109840.0,0.49304493]
[1756781650266,0.63108116,109850.0,109840.0,0.45674493]
[1756781650468,0.63108116,109850.0,109840.0,0.49304493]
[1756781650665,0.08678,109850.0,109840.0,0.49304493]
[1756781650864,0.63308116,109850.0,109840.0,0.49304493]
[1756781651068,0.32308116,109850.0,109840.0,0.49304493]
[1756781651262,1.56216116,109850.0,109840.0,0.49304493]
[1756781651465,1.56316116,109850.0,109840.0,0.49304493]
[1756781651962,0.70408116,109850.0,109840.0,0.49304493]
[1756781652163,1.56316116,109850.0,109840.0,0.49304493]
[1756781654466,0.08778,109850.0,109840.0,0.49304493]
[1756781654667,0.87065116,109850.0,109840.0,0.72934609]
[1756781655055,0.90764116,109850.0,109840.0,0.72934609]
[1756781657363,0.90764116,109850.0,109840.0,0.49304493]
[1756781657562,0.90764116,109850.0,109840.0,0.72934609]
[1756781657969,1.18316116,109850.0,109840.0,0.72934609]
[1756781658366,1.18312116,109850.0,109840.0,0.72934609]
[1756781659266,1.18312116,109850.0,109840.0,0.49304493]
[1756781659568,1.18312116,109850.0,109840.0,0.72934609]
[1756781660465,1.18312116,109850.0,109840.0,0.49304493]
[1756781660774,1.18312116,109850.0,109840.0,0.72934609]
[1756781661470,1.20312116,109850.0,109840.0,0.72934609]
[1756781661765,1.20312116,109850.0,109840.0,0.45674493]
[1756781661972,1.20312116,109850.0,109840.0,0.69304609]
[1756781662469,1.18312116,109850.0,109840.0,0.45674493]
[1756781662669,1.18312116,109850.0,109840.0,0.49304493]
[1756781663262,1.18312116,109850.0,109840.0,0.72934609]
[1756781664371,1.18312116,109850.0,109840.0,0.49304493]
[1756781664574,1.18312116,109850.0,109840.0,0.72934609]
[1756781664772,1.18312116,109850.0,109840.0,0.49304493]
[1756781664973,1.18312116,109850.0,109840.0,0.72934609]
[1756781665173,1.18312116,109850.0,109840.0,0.49304493]
[1756781665376,1.18312116,109850.0,109840.0,0.72934609]
[1756781665775,1.54312116,109850.0,109840.0,0.49304493]
[1756781665969,1.52119511,109850.0,109840.0,0.40985493]
[1756781666169,1.52119511,109850.0,109840.0,0.04905493]
[1756781666476,1.52119511,109850.0,109840.0,0.00034]
[1756781667079,1.51164511,109850.0,109840.0,0.00034]
[1756781667377,1.51164511,109850.0,109840.0,0.04905493]
[1756781668582,1.51164511,109850.0,109840.0,0.00034]
[1756781668782,1.77119511,109850.0,109840.0,0.00034]
[1756781669179,1.79096551,109850.0,109840.0,0.04905493]
[1756781669380,2.02726667,109850.0,109840.0,0.04905493]
[1756781669582,2.02726667,109850.0,109840.0,0.00034]
[1756781669771,2.38806667,109850.0,109840.0,0.04905493]
[1756781669975,2.38806667,109850.0,109840.0,0.00034]
[1756781670472,2.38806667,109850.0,109830.0,0.04871493]
[1756781670671,0.88119232,109840.0,109820.0,0.44581493]
[1756781670877,1.17992116,109830.0,109820.0,0.49270493]
[1756781671084,1.49992116,109830.0,109820.0,0.09560493]
[1756781672685,2.09702232,109830.0,109820.0,0.04871493]
[1756781672885,0.03699,109820.0,109810.0,0.09560493]
[1756781673088,0.89738232,109820.0,109810.0,0.13190493]
[1756781673689,0.89638232,109820.0,109810.0,0.13190493]
[1756781674391,0.89638232,109820.0,109810.0,0.04789]
[1756781674587,0.89638232,109820.0,109810.0,0.04889]
[1756781674977,1.41522232,109820.0,109810.0,0.04889]
[1756781675182,1.73522232,109820.0,109810.0,0.04889]
[1756781675792,1.73522232,109820.0,109810.0,0.05121]
[1756781677196,1.74428815,109820.0,109810.0,0.002]
[1756781679493,1.74420815,109820.0,109810.0,0.002]
[1756781679787,0.88544815,109820.0,109810.0,0.02629]
[1756781679989,1.74420815,109820.0,109810.0,0.002]
[1756781680987,0.88544815,109820.0,109810.0,0.002]
[1756781681194,1.74420815,109820.0,109810.0,0.05121]
[1756781683187,0.88544815,109820.0,109810.0,0.05121]
[1756781683382,0.08378,109820.0,109810.0,0.68449116]
[1756781683588,0.94246,109820.0,109810.0,0.93449116]
[1756781684493,0.08378,109820.0,109810.0,0.93449116]
[1756781684696,0.94246,109820.0,109810.0,0.93449116]
[1756781685390,0.94246,109820.0,109810.0,0.69819]
[1756781685592,0.94246,109820.0,109810.0,0.93476662]
[1756781686097,0.85868,109820.0,109810.0,0.93476662]
[1756781686294,0.8818,109820.0,109810.0,0.93476662]
[1756781686599,0.9422,109820.0,109810.0,0.93476662]
[1756781687392,0.08352,109820.0,109810.0,0.93476662]
[1756781687693,0.94216,109820.0,109810.0,0.93476662]
[1756781688996,0.94216,109820.0,109810.0,0.68476662]
[1756781692200,0.08352,109820.0,109810.0,0.73348155]
[1756781692392,0.942,109820.0,109810.0,0.73348155]
[1756781694401,0.05466068,109830.0,109820.0,0.03618]
[1756781694602,0.96007068,109830.0,109820.0,0.73151391]
[1756781696699,2.15502392,109830.0,109810.0,0.40954729]
[1756781697001,0.32009662,109820.0,109810.0,0.49493729]
[1756781697198,0.08352,109820.0,109810.0,0.49493729]
[1756781697506,0.41352,109820.0,109810.0,0.49493729]
[1756781697911,0.41352,109820.0,109810.0,0.49593729]
[1756781698412,0.43352,109820.0,109810.0,0.49593729]
[1756781698797,0.67009662,109820.0,109810.0,0.49593729]
[1756781699404,0.67009662,109820.0,109810.0,0.49493729]
[1756781699707,0.67009662,109820.0,109810.0,0.49593729]
[1756781700308,0.67009662,109820.0,109810.0,0.44719]
[1756781701105,0.67009662,109820.0,109810.0,0.41101]
[1756781701313,0.92009662,109820.0,109810.0,0.43492708]
[1756781701524,0.92009662,109820.0,109810.0,0.3618]
[1756781701707,0.93986655,109820.0,109810.0,0.41064794]
[1756781702605,0.93986655,109820.0,109810.0,0.40964794]
[1756781702801,1.30066655,109820.0,109810.0,0.04884794]
[1756781703507,0.03651,109810.0,109800.0,0.4790361]
[1756781703707,1.49813662,109810.0,109800.0,0.5152161]
[1756781704610,0.45752,109810.0,109800.0,0.5152161]
[1756781704809,0.08752,109810.0,109800.0,0.5152161]
[1756781705008,0.94552,109810.0,109800.0,0.5152161]
[1756781705811,0.94752,109810.0,109800.0,0.5152161]
[1756781706220,0.94752,109810.0,109800.0,0.46636816]
[1756781707219,0.16188503,109810.0,109800.0,0.46636816]
[1756781707420,1.01984503,109810.0,109800.0,0.46636816]
[1756781710022,0.16188503,109810.0,109800.0,0.46636816]
[1756781710217,1.01976503,109810.0,109800.0,0.46636816]
[1756781712322,1.25634165,109810.0,109800.0,0.46636816]
[1756781712822,1.01976503,109810.0,109800.0,0.46636816]
[1756781713622,1.01976503,109810.0,109800.0,0.51520075]
[1756781714422,1.01960503,109810.0,109800.0,0.46636816]
[1756781714621,1.01960503,109810.0,109800.0,0.5151987]
[1756781714924,1.01960503,109810.0,109800.0,0.46636816]
[1756781715414,0.16188503,109810.0,109800.0,0.46636816]
[1756781715717,1.01952503,109810.0,109800.0,0.46636816]
[1756781715918,0.16188503,109810.0,109800.0,0.46636816]
[1756781716223,1.01952503,109810.0,109800.0,0.46636816]
[1756781718217,0.16188503,109810.0,109800.0,0.46636816]
[1756781718414,0.006,109810.0,109800.0,0.96764478]
[1756781718619,0.006,109810.0,109800.0,1.03278417]
[1756781718817,0.006,109810.0,109800.0,1.89030417]
[1756781719018,0.006,109810.0,109800.0,2.12688079]
[1756781720122,0.006,109810.0,109800.0,2.14688079]
[1756781720316,0.006,109810.0,109800.0,2.4417414]
[1756781722226,0.006,109810.0,109800.0,2.5328107]
[1756781722414,0.006,109810.0,109800.0,2.61477561]
[1756781723424,0.006,109810.0,109800.0,1.66618631]
[1756781723724,0.006,109810.0,109800.0,2.46350631]
[1756781724524,0.006,109810.0,109800.0,2.6195818]
[1756781724726,0.004,109810.0,109800.0,2.53861689]
[1756781724926,0.05199068,109830.0,109800.0,2.50243689]
[1756781725121,0.09990068,109830.0,109820.0,1.04239662]
[1756781725518,0.09990068,109830.0,109820.0,1.0515282]
[1756781725826,0.06606068,109830.0,109820.0,1.10740281]
[1756781726027,0.01815068,109830.0,109820.0,1.96460281]
[1756781726223,0.01815068,109830.0,109820.0,2.20959662]
[1756781726819,0.01815068,109830.0,109820.0,2.78722594]
[1756781727015,0.01815068,109830.0,109820.0,2.55064932]
[1756781727625,0.01815068,109830.0,109820.0,2.78722594]
[1756781728027,0.01815068,109830.0,109820.0,2.79644118]
[1756781728326,0.02015068,109830.0,109820.0,2.86144737]
[1756781728532,0.002,109830.0,109820.0,2.88179569]
[1756781729232,0.003,109830.0,109820.0,2.88179569]
[1756781729827,0.003,109830.0,109820.0,2.02459569]
[1756781730031,0.002,109830.0,109820.0,2.88163569]
[1756781731130,0.09992319,109870.0,109860.0,0.08422]
[1756781731427,0.33649981,109870.0,109860.0,0.3608]
[1756781731631,0.68649981,109870.0,109860.0,0.3608]
[1756781732326,0.69049981,109870.0,109860.0,0.3608]
[1756781732531,0.69049981,109870.0,109860.0,0.0234]
[1756781732532,0.69749981,109870.0,109860.0,0.0234]
[1756781733132,0.08175,109860.0,109850.0,0.3842]
[1756781733429,0.67832662,109860.0,109850.0,0.40765]
[1756781733619,0.67832662,109860.0,109850.0,0.44502]
[1756781734432,0.44175,109860.0,109850.0,0.44502]
[1756781734932,0.44475,109860.0,109850.0,0.44502]
[1756781735432,0.44775,109860.0,109850.0,0.44502]
[1756781737534,0.93432662,109860.0,109850.0,0.3608]
[1756781737735,1.79080662,109860.0,109850.0,0.3608]
[1756781739036,1.55423,109860.0,109850.0,0.3608]
[1756781739333,1.79080662,109860.0,109850.0,0.3608]
[1756781740838,0.035,109850.0,109840.0,0.46267836]
[1756781741033,0.41022,109850.0,109840.0,0.46267836]
[1756781741435,0.08022,109850.0,109840.0,0.46267836]
[1756781741738,0.44022,109850.0,109840.0,0.46267836]
[1756781741934,0.10322,109850.0,109840.0,0.46267836]
[1756781742140,0.10522,109850.0,109840.0,0.46267836]
[1756781742438,0.08522,109850.0,109840.0,0.46267836]
[1756781744336,0.10522,109850.0,109840.0,0.46267836]
[1756781745139,0.68179662,109850.0,109840.0,0.44263]
[1756781745328,0.68179662,109850.0,109840.0,0.3608]
[1756781745534,0.68173029,109850.0,109840.0,0.3608]
[1756781745839,0.68173029,109850.0,109840.0,0.40719]
[1756781746228,0.68173029,109850.0,109840.0,0.44263]
[1756781746432,0.44522,109850.0,109840.0,0.44263]
[1756781746633,0.68173029,109850.0,109840.0,0.44263]
[1756781747034,0.68173029,109850.0,109840.0,0.67914029]
[1756781748433,0.68173029,109850.0,109840.0,0.44263]
[1756781750134,0.65173029,109850.0,109840.0,0.44263]
[1756781750438,0.68173029,109850.0,109840.0,0.67914029]
[1756781751638,0.68173029,109850.0,109840.0,0.44263]
[1756781751948,0.08022,109840.0,109830.0,0.49121255]
[1756781752136,1.77908058,109840.0,109830.0,0.13041255]
[1756781752636,1.77908058,109840.0,109830.0,0.04858255]
[1756781752839,1.76252804,109840.0,109830.0,0.02314]
[1756781753444,1.79752804,109840.0,109830.0,0.02314]
[1756781753844,1.79952804,109840.0,109830.0,0.02314]
[1756781754045,1.80052804,109840.0,109830.0,0.02314]
[1756781755644,2.05052804,109840.0,109830.0,0.02314]
[1756781756848,2.01552804,109840.0,109820.0,0.46517087]
[1756781757052,0.31673029,109830.0,109820.0,0.51156087]
[1756781757239,0.68673029,109830.0,109820.0,0.74807116]
[1756781757653,0.68673029,109830.0,109820.0,0.51156087]
[1756781758246,0.69566634,109830.0,109820.0,0.51156087]
[1756781758643,0.67566634,109830.0,109820.0,0.51156087]
[1756781758951,0.65566634,109830.0,109820.0,0.74807116]
[1756781759447,1.50237029,109830.0,109820.0,0.74807116]
[1756781759648,1.50437029,109830.0,109820.0,0.74807116]
[1756781761249,1.50537029,109830.0,109820.0,0.74807116]
[1756781761551,1.51445,109830.0,109820.0,0.74807116]
[1756781762349,1.51445,109830.0,109820.0,0.51156087]
[1756781762550,1.51445,109830.0,109820.0,0.74807116]
[1756781762747,0.93878,109830.0,109820.0,0.74807116]
[1756781763056,1.49529029,109830.0,109820.0,0.74807116]
[1756781763242,0.93878,109830.0,109820.0,0.74807116]
[1756781763443,1.50529029,109830.0,109820.0,0.74807116]
[1756781763750,1.51421087,109830.0,109820.0,0.74807116]
[1756781764553,1.18421087,109830.0,109820.0,0.74807116]
[1756781764754,0.90374,109830.0,109820.0,0.98458145]
[1756781765346,0.93965,109830.0,109820.0,0.74807116]
[1756781765545,0.93965,109830.0,109820.0,0.98458145]
[1756781766040,1.17616029,109830.0,109820.0,0.98458145]
[1756781766749,1.17616029,109830.0,109820.0,0.74807116]
[1756781767052,0.32064029,109830.0,109820.0,0.74807116]
[1756781767355,0.003,109830.0,109820.0,1.1859989]
[1756781768442,0.003,109830.0,109820.0,2.10632509]
[1756781769053,0.003,109830.0,109820.0,2.45632509]
[1756781770553,0.003,109830.0,109820.0,2.54737769]
[1756781770750,0.003,109830.0,109820.0,0.77798451]
[1756781770955,0.32230029,109830.0,109820.0,1.6242848]
[1756781771153,0.32230029,109830.0,109820.0,1.0190448]
[1756781771951,0.32230029,109830.0,109820.0,0.7690448]
[1756781772846,0.32230029,109830.0,109820.0,0.70403861]
[1756781773156,0.08579,109830.0,109820.0,0.70403861]
[1756781775054,0.08579,109830.0,109820.0,0.9405489]
[1756781777462,0.08579,109830.0,109820.0,0.70403861]
[1756781777958,0.08579,109830.0,109820.0,0.9405489]
[1756781778350,0.07122598,109870.0,109850.0,0.01434]
[1756781778551,0.44256457,109870.0,109860.0,0.55699058]
[1756781778863,0.33907045,109870.0,109860.0,0.32048029]
[1756781779052,0.33907045,109870.0,109860.0,0.08397]
[1756781779358,0.90907045,109870.0,109860.0,0.0478]
[1756781779556,0.91207045,109870.0,109860.0,0.08397]
[1756781779761,1.59075034,109870.0,109860.0,0.32048029]
[1756781779952,1.27475034,109870.0,109860.0,0.32048029]
[1756781780260,0.16354989,109870.0,109860.0,0.32048029]
[1756781780462,0.40006018,109870.0,109860.0,0.32048029]
[1756781784062,0.78006018,109870.0,109860.0,0.32048029]
[1756781787769,0.78006018,109870.0,109860.0,0.08397]
[1756781787972,0.78006018,109870.0,109860.0,0.32048029]
[1756781788966,0.78006018,109870.0,109860.0,0.32503029]
[1756781790171,0.54354989,109870.0,109860.0,0.32503029]
[1756781790371,0.77606018,109870.0,109860.0,0.32503029]
[1756781790576,0.77806018,109870.0,109860.0,0.32503029]
[1756781790764,0.54154989,109870.0,109860.0,0.32503029]
[1756781791070,0.77706018,109870.0,109860.0,0.32503029]
[1756781794666,0.77706018,109870.0,109860.0,0.08852]
[1756781796075,0.77706018,109870.0,109860.0,0.32503029]
[1756781797369,0.39706018,109870.0,109860.0,0.32503029]
[1756781797575,0.74706018,109870.0,109860.0,0.32503029]
[1756781798074,1.25114018,109870.0,109860.0,0.92234058]
[1756781799874,0.004,109870.0,109860.0,0.92234058]
[1756781800079,0.08166,109900.0,109890.0,0.04907]
[1756781800282,0.39166,109900.0,109890.0,0.68292029]
[1756781800466,0.39166,109900.0,109890.0,0.93292029]
[1756781800467,0.35694,109900.0,109890.0,0.93292029]
[1756781800775,0.03,109900.0,109890.0,0.94495099]
[1756781801075,0.03,109900.0,109890.0,1.21800128]
[1756781801278,0.10041441,109910.0,109900.0,0.0999]
[1756781801482,0.41041441,109910.0,109900.0,0.93372058]
[1756781802669,0.41441441,109910.0,109900.0,0.93372058]
[1756781803478,0.41741441,109910.0,109900.0,0.93372058]
[1756781804679,0.38269441,109910.0,109900.0,0.93372058]
[1756781805078,0.41741441,109910.0,109900.0,0.93372058]
[1756781807490,0.41741441,109910.0,109900.0,0.69688409]
[1756781809293,0.007,109910.0,109900.0,0.94688409]
[1756781809592,0.007,109910.0,109900.0,1.84885479]
[1756781809789,0.007,109910.0,109900.0,1.92338799]
[1756781810693,0.007,109910.0,109900.0,2.01437579]
[1756781810993,0.007,109910.0,109900.0,2.03437579]
[1756781811490,0.03472,109930.0,109900.0,2.03437579]
[1756781811792,0.45166,109930.0,109920.0,1.04339409]
[1756781813797,0.45266,109930.0,109920.0,1.04339409]
[1756781814295,0.52392003,109930.0,109920.0,1.04339409]
[1756781814992,0.52392003,109930.0,109920.0,1.89647409]
[1756781815191,0.52592003,109930.0,109920.0,1.89647409]
[1756781815889,0.52592003,109930.0,109920.0,1.04339409]
[1756781816195,0.45466,109930.0,109920.0,1.04339409]
[1756781816392,0.45466,109930.0,109920.0,1.05225978]
[1756781816784,0.45466,109930.0,109920.0,1.04339409]
[1756781817992,0.45466,109930.0,109920.0,0.80721]
[1756781818199,0.45466,109930.0,109920.0,1.04339409]
[1756781819199,0.003,109930.0,109920.0,1.37054988]
[1756781820085,0.003,109930.0,109920.0,1.13436579]
[1756781820792,0.003,109930.0,109920.0,1.37054988]
[1756781821799,0.003,109930.0,109920.0,1.13436579]
[1756781821987,0.003,109930.0,109920.0,1.37054988]
[1756781822298,0.003,109930.0,109920.0,1.62054988]
[1756781822598,0.003,109930.0,109920.0,1.64054988]
[1756781824891,0.39605621,109970.0,109940.0,0.0909481]
[1756781825097,0.11691621,109970.0,109960.0,0.68259409]
[1756781825290,0.45608503,109970.0,109960.0,0.04907]
[1756781825589,0.47519645,109970.0,109960.0,0.04907]
[1756781825796,0.45608503,109970.0,109960.0,0.04907]
[1756781825996,0.45608503,109970.0,109960.0,0.08435]
[1756781826698,0.45908503,109970.0,109960.0,0.08435]
[1756781827094,0.46008503,109970.0,109960.0,0.08435]
[1756781827289,0.03925621,109970.0,109960.0,0.95158445]
[1756781827593,0.03925621,109970.0,109960.0,2.44556714]
[1756781827898,0.00955593,109980.0,109970.0,0.1752803]
[1756781828089,0.00955593,109980.0,109970.0,1.33844848]
[1756781828291,0.03606507,110000.0,109990.0,0.08435]
[1756781828590,0.03606507,110000.0,109990.0,1.62448789]
[1756781829186,0.03606507,110000.0,109990.0,2.11067198]
[1756781829392,0.03606507,110000.0,109990.0,2.85147198]
[1756781829586,0.03606507,110000.0,109990.0,2.23528789]
[1756781829897,0.03606507,110000.0,109990.0,2.31528789]
[1756781830392,0.03606507,110000.0,109990.0,2.23528789]
[1756781830599,0.03606507,110000.0,109990.0,1.89421409]
[1756781830995,0.03806507,110000.0,109990.0,1.89421409]
[1756781831791,0.03606507,110000.0,109990.0,1.89521409]
[1756781832206,0.03606507,110000.0,109990.0,1.89921409]
[1756781832895,0.03606507,110000.0,109990.0,1.99012789]
[1756781833100,0.03606507,110000.0,109990.0,1.89921409]
[1756781834298,0.03606507,110000.0,109990.0,1.99012789]
[1756781835606,0.03606507,110000.0,109990.0,2.36012789]
[1756781836403,0.03606507,110000.0,109990.0,2.31012789]
[1756781836592,0.03606507,110000.0,109990.0,2.01012789]
[1756781836796,0.03606507,110000.0,109990.0,2.36012789]
[1756781837802,0.03606507,110000.0,109990.0,1.99012789]
[1756781840204,0.03606507,110000.0,109990.0,2.84631198]
[1756781840406,4e-05,110010.0,110000.0,0.67113398]
[1756781840701,4e-05,110010.0,110000.0,1.03193398]
[1756781840906,4e-05,110010.0,110000.0,0.8695658]
[1756781841102,0.01856057,110030.0,110010.0,0.0908957]
[1756781841307,0.38856057,110030.0,110020.0,1.53277409]
[1756781842202,0.37,110030.0,110020.0,2.22064748]
[1756781842503,0.04241221,110040.0,110030.0,0.08435]
[1756781842692,0.45840221,110040.0,110030.0,0.68133409]
[1756781842898,0.42166221,110040.0,110030.0,1.53269409]
[1756781843206,0.37241221,110040.0,110030.0,1.53265409]
[1756781843797,0.10241221,110040.0,110030.0,1.53265409]
[1756781843998,0.04241221,110040.0,110030.0,1.53719409]
[1756781844605,0.04441221,110040.0,110030.0,1.53719409]
[1756781844802,0.04441221,110040.0,110030.0,0.68587409]
[1756781845002,0.75040221,110040.0,110030.0,0.68587409]
[1756781845203,0.75040221,110040.0,110030.0,0.41441]
[1756781846103,0.9865863,110040.0,110030.0,0.36534]
[1756781846698,0.9865863,110040.0,110030.0,0.00454]
[1756781846899,1.3473863,110040.0,110030.0,0.00454]
[1756781848406,0.75040221,110040.0,110030.0,0.08889]
[1756781848608,0.75040221,110040.0,110030.0,0.05361]
[1756781848810,1.11120221,110040.0,110030.0,0.02946]
[1756781849009,1.11120221,110040.0,110030.0,0.00454]
[1756781849408,1.3473863,110040.0,110030.0,0.02946]
[1756781849911,1.3473863,110040.0,110030.0,0.00454]
[1756781850106,1.58357039,110040.0,110030.0,0.00454]
[1756781850309,0.04925,110010.0,110000.0,0.45515]
[1756781850609,0.08599,110010.0,110000.0,0.69133409]
[1756781851512,0.08599,110010.0,110000.0,0.69233409]
[1756781851813,0.08599,110010.0,110000.0,0.69433409]
[1756781852111,0.08599,110010.0,110000.0,0.45815]
[1756781852313,0.08599,110010.0,110000.0,0.69433409]
[1756781852813,0.09497834,110010.0,110000.0,0.69433409]
[1756781853013,0.08599,110010.0,110000.0,0.69433409]
[1756781853809,0.42599,110010.0,110000.0,0.09735]
[1756781854005,0.42599,110010.0,110000.0,0.33353409]
[1756781854204,0.44599,110010.0,110000.0,0.69433409]
[1756781854406,0.44599,110010.0,110000.0,0.09735]
[1756781854608,0.08599,110010.0,110000.0,0.69433409]
[1756781857419,0.4851667,110010.0,110000.0,0.33353409]
[1756781857810,0.4451667,110010.0,110000.0,0.33353409]
[1756781858215,0.1051667,110010.0,110000.0,0.33353409]
[1756781858419,0.1051667,110010.0,110000.0,0.34847409]
[1756781859624,0.1051667,110010.0,110000.0,0.70927409]
[1756781860522,0.90604288,110020.0,110010.0,0.08239]
[1756781860719,0.90604288,110020.0,110010.0,0.67937409]
[1756781860720,0.92522046,110020.0,110010.0,0.67937409]
[1756781861020,0.65073622,110030.0,110020.0,0.03528]
[1756781861021,0.90455213,110030.0,110020.0,0.03528]
[1756781861219,1.29993728,110030.0,110020.0,0.67937409]
[1756781861420,0.11913728,110030.0,110020.0,0.67937409]
[1756781861615,0.03778728,110030.0,110020.0,0.67937409]
[1756781861815,0.03778728,110030.0,110020.0,0.44319]
[1756781861816,0.01861213,110030.0,110020.0,0.44319]
[1756781862016,0.04241221,110040.0,110030.0,0.03528]
[1756781862219,0.0615865,110040.0,110030.0,0.31857409]
[1756781862427,0.04241221,110040.0,110030.0,0.92937409]
[1756781863826,0.04441221,110040.0,110030.0,1.78013409]
[1756781865331,0.12576221,110040.0,110030.0,0.67937409]
[1756781865521,0.09062221,110040.0,110030.0,0.67937409]
[1756781866028,0.12576221,110040.0,110030.0,0.67937409]
[1756781866226,0.06357472,110040.0,110030.0,0.67937409]
[1756781866520,0.08645472,110040.0,110030.0,0.67937409]
[1756781868420,0.14492472,110040.0,110030.0,0.67937409]
[1756781868621,0.14492472,110040.0,110030.0,0.44319]
[1756781868821,0.14492472,110040.0,110030.0,0.67937409]
[1756781869430,0.70060746,110040.0,110030.0,0.31807274]
[1756781869729,2.0368502,110040.0,110030.0,0.04711]
[1756781869926,2.0368502,110040.0,110030.0,0.08239]
[1756781870126,1.80116746,110040.0,110030.0,0.31807274]
[1756781871030,0.97060746,110040.0,110030.0,0.31807274]
[1756781871229,0.10978472,110040.0,110030.0,0.31807274]
[1756781873126,0.10978472,110040.0,110030.0,0.67887274]
[1756781874231,0.76060746,110040.0,110030.0,0.31807274]
[1756781874430,0.75060746,110040.0,110030.0,0.31807274]
[1756781877130,1.2362902,110040.0,110030.0,0.04711]
[1756781877330,1.2011502,110040.0,110030.0,0.02311]
[1756781877720,1.2011502,110040.0,110030.0,0.28279274]
[1756781877937,1.2362902,110040.0,110030.0,0.28279274]
[1756781878234,0.08135,110030.0,110020.0,0.32261274]
[1756781878422,1.53735274,110030.0,110020.0,0.32261274]
[1756781878626,1.16735274,110030.0,110020.0,0.32261274]
[1756781878830,0.44135,110030.0,110020.0,0.32261274]
[1756781879032,0.08135,110030.0,110020.0,0.32261274]
[1756781879338,0.68803274,110030.0,110020.0,0.32261274]
[1756781879533,0.04721,110030.0,110020.0,0.68341274]
[1756781879727,0.04721,110030.0,110020.0,0.91909548]
[1756781879728,0.40721,110030.0,110020.0,0.91909548]
[1756781879928,0.44235,110030.0,110020.0,0.55829548]
[1756781880142,0.08235,110030.0,110020.0,0.32261274]
[1756781880331,0.64803274,110030.0,110020.0,0.32261274]
[1756781880731,0.64803274,110030.0,110020.0,0.08693]
[1756781880934,0.64803274,110030.0,110020.0,0.32261274]
[1756781883339,0.41235,110030.0,110020.0,0.32261274]
[1756781883534,0.64803274,110030.0,110020.0,0.32261274]
[1756781883729,0.08235,110030.0,110020.0,0.08693]
[1756781884036,0.67803274,110030.0,110020.0,0.32261274]
[1756781884231,0.93259,110030.0,110020.0,0.55829548]
[1756781884539,1.53827274,110030.0,110020.0,0.32261274]
[1756781885033,0.08235,110030.0,110020.0,0.32261274]
[1756781885229,1.29404,110030.0,110020.0,0.55829548]
[1756781885430,0.93404,110030.0,110020.0,0.08693]
[1756781885630,0.93404,110030.0,110020.0,0.32261274]
[1756781885831,0.93404,110030.0,110020.0,0.55829548]
[1756781885832,1.48972274,110030.0,110020.0,0.55829548]
[1756781886241,1.48972274,110030.0,110020.0,0.32261274]
[1756781886438,1.48972274,110030.0,110020.0,0.08693]
[1756781886747,1.50972274,110030.0,110020.0,0.32261274]
[1756781887743,0.93404,110030.0,110020.0,0.32261274]
[1756781887941,1.48972274,110030.0,110020.0,0.32261274]
[1756781888141,1.51972274,110030.0,110020.0,0.32261274]
[1756781888440,1.53890742,110030.0,110020.0,0.32261274]
[1756781889239,1.53890742,110030.0,110020.0,0.08693]
[1756781889437,1.53890742,110030.0,110020.0,0.32261274]
[1756781889634,2.40386696,110030.0,110020.0,0.00454]
[1756781894142,1.32166148,110030.0,110020.0,0.32303274]
[1756781894342,0.70714422,110030.0,110020.0,0.32303274]
[1756781894548,1.20734422,110030.0,110020.0,0.32303274]
[1756781895048,1.30166148,110030.0,110020.0,0.57303274]
[1756781895246,1.2824768,110030.0,110020.0,0.57303274]
[1756781895443,0.0656868,110030.0,110020.0,0.80871548]
[1756781896348,0.1022768,110030.0,110020.0,0.85728618]
[1756781897355,0.1022768,110030.0,110020.0,0.85274618]
[1756781898347,0.0656868,110030.0,110020.0,0.85274618]
[1756781898551,0.0423568,110030.0,110020.0,0.85274618]
[1756781898747,0.0194768,110030.0,110020.0,1.21354618]
[1756781899148,0.0194768,110030.0,110020.0,1.16497548]
[1756781899345,0.0194768,110030.0,110020.0,1.22998167]
[1756781899543,0.0194768,110030.0,110020.0,2.37513548]
[1756781899745,0.0194768,110030.0,110020.0,2.01513548]
[1756781900250,0.001,110030.0,110020.0,2.39513548]
[1756781900450,0.001,110030.0,110020.0,2.01513548]
[1756781900950,0.001,110030.0,110020.0,2.37513548]
[1756781901148,0.001,110030.0,110020.0,2.72200838]
[1756781901342,0.001,110030.0,110020.0,2.78701457]
[1756781901952,0.02707949,110050.0,110040.0,0.08281]
[1756781902152,0.07400949,110050.0,110040.0,2.12589548]
[1756781902354,0.04992949,110050.0,110040.0,2.12589548]
[1756781902554,0.02707949,110050.0,110040.0,0.80441]
[1756781902755,0.02707949,110050.0,110040.0,1.90453]
[1756781902954,0.02707949,110050.0,110040.0,1.91383252]
[1756781903150,0.03007949,110050.0,110040.0,2.385198]